bitfinex/quotes_ETHUSD_20241001
["timestamp","ask_amount","ask_price","bid_price","bid_amount"]
[1727811959718,19.53,2502.3,2502.0,4.79614]
[1727811960306,4.79581,2502.2,2501.8,4.79638]
[1727811960539,27.89053392,2502.3,2501.9,4.79624]
[1727811960742,23.09484392,2502.3,2501.9,4.79624]
[1727811960931,27.89043392,2502.3,2501.9,4.79624]
[1727811961127,19.53,2502.2,2501.9,4.79624]
[1727811961717,19.53,2502.2,2501.7,4.79654]
[1727811961917,19.53,2502.2,2501.8,4.79653]
[1727811962218,19.53,2502.2,2501.7,4.79654]
[1727811962219,24.3258,2502.2,2501.7,4.79654]
[1727811962445,4.79606,2502.1,2501.6,4.79682]
[1727811963471,5.59523,2501.9,2501.4,4.79721]
[1727811963678,5.356063,2501.8,2501.4,4.79721]
[1727811963847,5.59518,2501.9,2501.5,4.79708]
[1727811964183,0.7988,2501.9,2501.5,4.79708]
[1727811964375,0.7988,2501.9,2501.3,4.79747]
[1727811964570,4.79664,2501.8,2501.3,4.87741861]
[1727811964779,4.79664,2501.8,2501.3,4.79747]
[1727811964943,0.7988,2501.9,2501.3,4.87741858]
[1727811965146,0.7988,2501.9,2501.5,4.79711]
[1727811965447,0.7988,2501.9,2501.1,0.7701]
[1727811965448,4.79654,2501.8,2501.4,4.79729]
[1727811965651,5.59524,2501.9,2501.5,4.79709]
[1727811966081,0.7975,2502.1,2501.7,4.79659]
[1727811966251,0.7975,2501.5,2501.0,4.79794]
[1727811966451,20.3275,2501.5,2501.3,4.79745]
[1727811966650,20.3275,2501.5,2501.4,4.79731]
[1727811966651,19.53,2501.5,2501.4,4.79731]
[1727811967773,19.53,2501.5,2501.3,5.57505]
[1727811967993,19.53,2501.5,2501.1,4.79775]
[1727811968192,19.53,2501.5,2501.1,9.59555]
[1727811968400,19.53,2501.5,2501.1,4.79775]
[1727811968585,19.53,2501.5,2501.1,9.59555]
[1727811969231,0.10407777,2501.4,2501.2,4.79768]
[1727811969711,0.10407777,2501.4,2501.2,4.79752]
[1727811970413,19.53,2501.6,2501.2,4.79752]
[1727811970711,0.10405889,2501.5,2501.4,5.59143]
[1727811971098,19.53,2502.0,2501.6,4.79679]
[1727811971288,19.53,2502.0,2501.4,0.7943]
[1727811971474,19.53,2502.0,2501.9,4.79635]
[1727811971895,19.53,2502.0,2501.8,4.79653]
[1727811972208,19.53,2502.0,2501.9,4.79635]
[1727811972426,19.53,2502.0,2501.9,5.57185]
[1727811972922,8.1661,2502.4,2501.9,5.57185]
[1727811972923,0.7861,2502.4,2501.9,0.7755]
[1727811973252,19.53,2502.8,2502.6,4.795]
[1727811973386,0.7861,2503.0,2502.7,4.79482]
[1727811973387,19.53,2503.0,2502.7,4.79482]
[1727811973772,19.53,2503.0,2502.6,4.795]
[1727811973773,19.53,2503.0,2502.6,4.79492]
[1727811973984,19.53,2503.0,2502.7,4.79481]
[1727811974670,19.53,2503.0,2502.4,0.7755]
[1727811974671,2.08598334,2503.1,2503.0,4.79424]
[1727811974902,2.08775584,2503.2,2503.1,4.79405]
[1727811975072,22.03530701,2503.3,2503.2,4.79386]
[1727811975275,2.50530701,2503.4,2503.0,0.48741403]
[1727811975521,2.08778148,2503.1,2502.9,5.60508]
[1727811975771,2.08778148,2503.1,2503.0,4.79424]
[1727811976170,2.50530701,2503.4,2503.1,4.79405]
[1727811976171,2.08778148,2503.2,2503.1,4.79405]
[1727811976397,2.50530701,2503.4,2503.2,4.7937]
[1727811976696,2.50530701,2503.4,2503.3,4.79367]
[1727811976897,2.50530701,2503.5,2503.2,4.7937]
[1727811977073,19.53,2503.6,2503.2,9.58741]
[1727811977074,2.08774708,2503.4,2503.2,9.58741]
[1727811977412,2.08774708,2503.4,2503.3,4.79367]
[1727811977720,2.50530701,2503.5,2503.3,4.79367]
[1727811978028,2.08729757,2503.4,2503.3,4.79367]
[1727811978373,2.08729757,2503.7,2503.5,4.79317]
[1727811978673,2.08729757,2503.7,2503.6,4.79309]
[1727811978872,19.53,2504.4,2503.8,5.34271]
[1727811978873,2.08729757,2503.9,2503.8,5.34271]
[1727811979078,2.08729757,2504.0,2503.9,6.12762]
[1727811979328,2.08729757,2504.1,2503.9,6.12762]
[1727811979612,2.08729757,2504.2,2503.9,6.12762]
[1727811979820,2.08729757,2504.1,2503.6,0.7679]
[1727811980117,4.79262,2503.9,2503.3,5.56145]
[1727811980323,4.79309,2503.6,2502.9,4.79435]
[1727811980533,4.79309,2503.6,2503.1,4.79391]
[1727811980811,4.7932,2503.6,2503.0,5.56214]
[1727811981011,4.79335,2503.5,2503.0,5.56214]
[1727811981313,0.7673,2503.4,2503.0,4.79424]
[1727811981612,4.79391,2503.2,2502.7,0.8275]
[1727811981833,20.2973,2503.4,2502.8,4.79447]
[1727811981834,4.79368,2503.3,2502.8,4.79447]
[1727811982123,20.2973,2503.4,2502.9,4.79438]
[1727811982421,20.2973,2503.4,2503.0,4.79422]
[1727811983152,2.08729757,2503.3,2503.0,4.79422]
[1727811983324,4.79409,2503.1,2502.6,4.79491]
[1727811983531,2.08400455,2503.2,2502.8,4.79462]
[1727811983921,4.79377,2503.3,2502.6,4.79491]
[1727811984114,0.09167555,2503.1,2502.7,4.79481]
[1727811984326,4.88564806,2503.2,2502.6,4.79491]
[1727811984528,0.09162988,2503.0,2502.7,4.79469]
[1727811984861,0.08854442,2502.9,2502.7,4.79469]
[1727811985017,0.08854442,2502.9,2502.5,0.55]
[1727811985219,26.40796455,2503.2,2502.7,4.79481]
[1727811985464,4.88282258,2503.1,2502.5,5.962375]
[1727811985663,2.17262713,2503.1,2502.6,4.7949]
[1727811987968,5.62055,2502.3,2501.8,4.79639]
[1727811988179,5.62055,2502.3,2501.6,4.79677]
[1727811988180,4.7958,2502.2,2501.6,4.79677]
[1727811988334,4.79616,2502.0,2501.4,5.57976]
[1727811988538,19.6182528,2502.2,2501.4,5.57976]
[1727811988539,19.4144128,2502.2,2501.4,5.57976]
[1727811988839,0.7544,2501.7,2501.3,4.79747]
[1727811989039,0.08497116,2501.6,2501.3,4.79747]
[1727811989390,0.08497116,2501.6,2501.1,4.79777]
[1727811989557,19.49938396,2501.6,2501.1,4.79777]
[1727811989739,24.29631396,2501.6,2501.1,4.79777]
[1727811989941,24.29631396,2501.6,2500.9,4.79808]
[1727811989942,19.4144128,2501.5,2500.9,4.79808]
[1727811990143,19.4144128,2501.4,2501.1,4.79777]
[1727811990355,0.08520029,2501.4,2501.1,5.277537]
[1727811990587,0.08520029,2501.4,2501.3,4.7975]
[1727811990741,20.1688128,2501.7,2501.3,4.7975]
[1727811991253,0.08477519,2501.6,2501.3,4.7975]
[1727811991444,0.08477519,2501.6,2501.5,4.79712]
[1727811991643,19.4144128,2502.0,2501.5,4.79712]
[1727811991644,2.08527186,2502.0,2501.8,4.79653]
[1727811991871,19.4144128,2502.1,2501.8,4.79653]
[1727811991872,0.08472937,2501.9,2501.8,4.79653]
[1727811992344,2.08703804,2502.3,2501.8,4.79653]
[1727811992550,2.08703804,2502.3,2501.6,0.8051]
[1727811992551,2.08703804,2502.3,2502.0,4.79614]
[1727811992864,22.32265084,2502.4,2501.9,9.5925]
[1727811993042,22.32265084,2502.4,2502.0,4.79611]
[1727811993247,2.90823804,2502.4,2502.0,4.87604255]
[1727811993482,0.8212,2502.4,2502.0,4.79611]
[1727811993658,0.8212,2502.4,2501.8,4.7964]
[1727811993976,0.8212,2502.4,2501.8,5.35655]
[1727811994584,5.61672,2502.4,2501.8,5.35655]
[1727811994806,5.61672,2502.4,2501.9,4.79632]
[1727811995470,5.61672,2502.4,2501.8,5.35655]
[1727811995794,4.79579,2502.2,2501.7,4.79663]
[1727811996105,4.79562,2502.3,2501.7,4.79671]
[1727811996313,0.08499928,2502.1,2501.8,4.79653]
[1727811996605,19.4144128,2502.1,2501.8,4.79643]
[1727811996933,0.08492814,2502.0,2501.7,4.79671]
[1727811997569,4.88118814,2502.0,2501.5,4.79701]
[1727811997770,4.88118814,2502.0,2501.7,4.79672]
[1727811997771,3.21766009,2501.9,2501.7,4.79672]
[1727811998096,0.08482957,2501.8,2501.5,4.79697]
[1727811998615,19.4144128,2502.0,2501.3,4.79738]
[1727811998905,4.79656,2501.8,2501.3,4.79738]
[1727811999106,7.69705728,2501.9,2501.1,4.79779]
[1727811999107,0.808,2501.7,2501.1,4.79779]
[1727811999271,20.30722939,2501.7,2501.0,5.63056]
[1727811999467,20.30722939,2501.7,2501.3,4.79738]
[1727811999723,20.30722939,2501.7,2501.4,4.79716]
[1727812000412,20.30722939,2501.7,2501.3,9.59476]
[1727812000621,20.30722939,2501.7,2501.4,4.79727]
[1727812000622,19.49922939,2501.7,2501.4,4.79727]
[1727812000776,19.49922939,2501.7,2501.5,4.797]
[1727812000979,19.49922939,2501.7,2501.6,4.79692]
[1727812001200,19.49922939,2501.7,2501.5,4.797]
[1727812001407,19.49922939,2501.7,2501.6,4.79692]
[1727812001586,0.08481659,2501.7,2501.6,7.070512]
[1727812002087,19.4144128,2502.4,2502.2,4.79562]
[1727812002284,20.1691128,2502.5,2502.3,4.79555]
[1727812002691,19.4144128,2502.5,2502.4,4.79539]
[1727812002902,19.4144128,2502.9,2502.7,4.79482]
[1727812003077,19.4144128,2502.9,2502.7,4.79465]
[1727812003268,19.4144128,2502.9,2502.8,4.79463]
[1727812003474,21.49772841,2503.2,2502.8,4.79463]
[1727812003714,21.49772841,2503.2,2502.7,4.79465]
[1727812003873,4.79422,2503.1,2502.5,4.79507]
[1727812004210,2.08331561,2503.1,2502.7,4.79479]
[1727812004406,6.87737561,2503.1,2502.5,4.79502]
[1727812004617,4.79428,2503.0,2502.5,4.79502]
[1727812005115,4.79428,2503.0,2502.3,4.7955]
[1727812005116,2.08331561,2503.1,2502.6,4.79489]
[1727812005271,2.08331561,2503.1,2502.7,4.7947]
[1727812005671,2.08347331,2503.1,2502.9,4.79438]
[1727812005916,21.49788611,2503.2,2502.9,4.79438]
[1727812006116,2.08347331,2503.1,2502.9,4.79438]
[1727812006330,2.08347331,2503.2,2503.1,4.79405]
[1727812006478,21.49788611,2503.3,2503.2,4.79386]
[1727812006677,19.4144128,2503.3,2503.2,4.79386]
[1727812006995,19.4144128,2503.3,2503.2,6.232075]
[1727812007907,19.4144128,2503.3,2503.1,4.79405]
[1727812008121,19.4144128,2503.3,2502.9,4.79429]
[1727812008288,19.4144128,2503.3,2503.2,4.79386]
[1727812008289,21.49788611,2503.3,2503.2,4.79386]
[1727812008486,21.49788611,2503.3,2503.1,4.79403]
[1727812009535,2.08347331,2503.2,2502.8,4.79451]
[1727812009713,2.08347331,2503.1,2502.8,9.58898]
[1727812010233,2.0836539,2503.1,2502.8,4.79447]
[1727812010403,2.0836539,2503.2,2502.8,4.79447]
[1727812010606,2.0836539,2503.2,2502.9,4.79432]
[1727812011114,2.0836539,2503.1,2503.0,4.79424]
[1727812011433,2.50038468,2503.2,2503.1,4.79405]
[1727812011635,21.91479748,2503.3,2503.2,4.79386]
[1727812011934,21.49847001,2503.3,2503.2,4.79386]
[1727812012099,21.49847001,2503.3,2503.2,5.829271]
[1727812013502,19.4144128,2503.3,2503.2,5.829271]
[1727812013898,2.08405721,2503.4,2503.3,4.79367]
[1727812013899,2.50038468,2503.4,2503.3,4.79367]
[1727812014246,2.50038468,2503.5,2503.4,4.79348]
[1727812014733,2.50038468,2503.5,2503.2,5.829241]
[1727812014920,2.50038468,2503.5,2503.3,4.79365]
[1727812015842,2.50038468,2503.5,2503.3,9.58721]
[1727812016137,2.50038468,2503.5,2503.4,4.79348]
[1727812017734,2.50038468,2503.5,2503.3,9.58714]
[1727812017941,2.50038468,2503.5,2503.4,4.79348]
[1727812019304,2.50290085,2503.5,2503.4,4.79348]
[1727812019527,2.50290085,2503.5,2503.3,4.79356]
[1727812019925,22.33446379,2503.7,2503.4,4.79348]
[1727812020256,27.12738379,2503.7,2503.3,4.79356]
[1727812020457,2.50249644,2503.5,2503.1,4.79395]
[1727812020630,2.08532443,2503.2,2503.1,4.79395]
[1727812020811,3.33239644,2503.4,2503.2,4.79384]
[1727812021017,2.50249644,2503.4,2503.3,4.79367]
[1727812021454,2.50249644,2503.6,2503.4,4.79348]
[1727812021757,2.50249644,2503.6,2503.1,4.7939]
[1727812021758,7.29567644,2503.6,2503.1,4.7939]
[1727812021960,2.08524217,2503.3,2503.2,4.7937]
[1727812022126,2.08524217,2503.4,2503.2,4.7937]
[1727812022447,2.08557658,2503.4,2503.2,4.7937]
[1727812022654,2.08557658,2503.4,2503.3,4.79367]
[1727812022949,2.08557658,2503.5,2503.3,4.79367]
[1727812023352,2.08557658,2503.5,2503.4,4.79348]
[1727812023754,2.08557658,2503.5,2503.4,5.58138]
[1727812023916,21.49998938,2503.6,2503.5,4.79328]
[1727812024352,21.50074599,2503.6,2503.4,4.79346]
[1727812024571,22.33034599,2503.6,2503.2,4.79372]
[1727812024725,2.08633319,2503.5,2503.2,10.628003]
[1727812024920,19.4144128,2503.4,2503.0,4.79408]
[1727812025145,26.29433599,2503.4,2502.8,5.6004]
[1727812025466,0.8183,2503.0,2502.8,4.79454]
[1727812025778,20.2327128,2503.3,2502.9,4.79432]
[1727812025942,25.0264328,2503.3,2502.9,4.79432]
[1727812026118,20.2327128,2503.3,2502.9,4.79432]
[1727812026325,20.2327128,2503.3,2502.9,5.273752]
[1727812026644,20.2327128,2503.3,2502.7,4.79475]
[1727812026847,20.2327128,2503.3,2503.1,9.58783]
[1727812027157,19.4144128,2503.3,2503.1,9.58783]
[1727812027364,19.4144128,2503.3,2503.1,4.79387]
[1727812027717,19.4144128,2503.3,2503.0,4.79423]
[1727812028719,19.4144128,2503.3,2503.2,4.79386]
[1727812029149,19.4144128,2503.6,2503.2,0.479386]
[1727812029354,19.4144128,2503.6,2503.4,4.79332]
[1727812029665,15.01302272,2504.0,2503.6,4.79309]
[1727812029666,19.4144128,2503.9,2503.6,4.79309]
[1727812029967,20.1663128,2504.2,2503.9,4.79252]
[1727812030172,20.1663128,2504.2,2503.7,4.87268407]
[1727812030173,24.9582828,2504.2,2503.7,4.79281]
[1727812030462,24.9582828,2504.2,2503.7,5.831393]
[1727812030758,24.9582828,2504.2,2503.5,5.59304]
[1727812030965,4.79257,2503.9,2503.5,4.79314]
[1727812031131,4.79272,2503.8,2503.3,4.79352]
[1727812031337,5.62132,2503.7,2503.3,4.79352]
[1727812031532,4.7932,2503.6,2503.1,4.7939]
[1727812031739,4.7932,2503.6,2503.1,5.27329]
[1727812032066,4.7931,2503.6,2503.1,5.27329]
[1727812032221,4.79344,2503.5,2502.9,5.58128]
[1727812032423,4.79329,2503.5,2503.0,4.79421]
[1727812032661,24.2077028,2503.5,2503.1,4.79405]
[1727812033021,24.2077028,2503.5,2502.9,4.79428]
[1727812033357,19.4144128,2503.5,2503.1,4.79404]
[1727812033561,19.4144128,2503.5,2502.9,4.79438]
[1727812033562,4.79349,2503.4,2502.9,4.79438]
[1727812033734,4.79349,2503.4,2502.9,9.58868]
[1727812033930,4.79349,2503.4,2502.9,4.7943]
[1727812034151,0.7599,2503.3,2503.0,4.79421]
[1727812034574,0.7599,2503.3,2502.9,5.35429]
[1727812034758,5.55366,2503.3,2502.8,4.79461]
[1727812034930,5.55366,2503.3,2502.8,4.79449]
[1727812034931,0.7599,2503.3,2502.8,4.79449]
[1727812035728,4.79396,2503.2,2502.7,4.7948]
[1727812035928,5.55366,2503.3,2502.7,4.7948]
[1727812035929,19.4144128,2503.1,2502.7,5.59172273]
[1727812036145,19.4144128,2503.1,2502.9,4.79428]
[1727812036966,19.4144128,2503.1,2502.7,5.59172273]
[1727812037273,19.4144128,2503.1,2502.8,4.79462]
[1727812037474,19.4144128,2503.1,2502.9,4.79432]
[1727812037642,19.4144128,2503.1,2503.0,5.753134]
[1727812037845,19.4144128,2503.1,2503.0,4.79424]
[1727812038931,21.49833364,2503.1,2502.9,4.79443]
[1727812039134,26.29248364,2503.1,2502.7,4.79478]
[1727812039361,24.2085628,2503.1,2502.7,4.79478]
[1727812040196,25.0138828,2503.0,2502.4,4.79523]
[1727812040349,25.0138828,2503.0,2502.0,0.8265]
[1727812040545,24.2089328,2502.9,2502.4,4.79528]
[1727812040891,24.2090428,2502.8,2502.3,4.7955]
[1727812041089,0.806,2502.6,2502.3,4.7955]
[1727812041409,0.806,2502.6,2501.9,4.79622]
[1727812041548,0.806,2502.6,2502.2,4.79573]
[1727812042329,5.60101,2502.6,2502.2,4.79573]
[1727812042453,5.60101,2502.6,2502.1,4.79595]
[1727812042653,5.60101,2502.6,2502.0,9.5921]
[1727812042654,4.79522,2502.5,2502.0,9.5921]
[1727812042850,25.2492558,2502.5,2502.0,4.79604]
[1727812043152,19.4144128,2502.4,2502.0,4.79604]
[1727812043352,19.4144128,2502.3,2501.8,4.79638]
[1727812043552,19.4144128,2502.3,2502.0,4.79613]
[1727812043865,0.794,2502.1,2501.9,9.59255]
[1727812044077,0.794,2502.1,2502.0,4.79616]
[1727812044450,19.4144128,2502.3,2502.1,4.79588]
[1727812044662,19.4144128,2502.3,2502.2,4.79577]
[1727812046159,19.4144128,2502.3,2502.1,4.79588]
[1727812046359,19.4144128,2502.3,2502.2,4.79577]
[1727812046562,19.4144128,2502.3,2501.9,4.79632]
[1727812046794,0.8292,2502.2,2501.9,4.79632]
[1727812047093,0.8292,2502.2,2501.7,4.7966]
[1727812047094,25.0394128,2502.2,2501.7,4.7966]
[1727812047296,20.2436128,2502.2,2501.7,4.7966]
[1727812047701,20.2436128,2502.2,2501.3,0.7525]
[1727812047871,20.2436128,2502.2,2501.7,4.79656]
[1727812047872,19.4144128,2502.1,2501.7,4.79656]
[1727812048073,19.4144128,2502.1,2501.8,4.79654]
[1727812048505,19.4144128,2502.1,2501.9,4.79634]
[1727812048715,19.4144128,2502.1,2501.7,4.79656]
[1727812048882,19.4144128,2502.1,2501.8,4.79648]
[1727812049294,19.4144128,2502.1,2501.7,4.79656]
[1727812049493,5.62508,2502.2,2501.5,4.79702]
[1727812049494,19.4144128,2502.0,2501.5,4.79702]
[1727812049826,19.4144128,2502.0,2501.0,3.7554]
[1727812049827,0.7582,2501.9,2501.0,3.7554]
[1727812049984,20.1726128,2501.9,2501.6,4.79679]
[1727812050311,19.4144128,2501.8,2501.7,4.79673]
[1727812050669,19.4144128,2501.8,2501.7,5.756082]
[1727812050868,19.4144128,2501.8,2501.7,0.959352]
[1727812051099,19.4144128,2501.8,2501.7,4.79673]
[1727812052963,19.4144128,2501.8,2501.7,5.60023]
[1727812053169,19.4144128,2501.8,2501.7,5.65356255]
[1727812053386,19.4144128,2501.8,2501.7,5.60023]
[1727812053768,19.4144128,2502.4,2502.2,4.79577]
[1727812053967,20.2413128,2502.6,2501.9,0.07992462]
[1727812054279,20.2413128,2502.6,2502.1,4.79589]
[1727812054465,4.79522,2502.5,2502.1,4.79589]
[1727812054869,4.79522,2502.5,2501.8,0.560023]
[1727812054870,9.59055,2502.5,2502.0,4.79604]
[1727812055172,4.79522,2502.5,2502.1,4.79588]
[1727812055505,4.79522,2502.5,2502.0,4.79604]
[1727812055715,4.79522,2502.5,2501.8,4.79644]
[1727812055716,9.59137,2502.3,2501.8,4.79644]
[1727812055871,2.50365328,2502.5,2501.5,0.7511]
[1727812055872,4.79624,2502.0,2501.5,0.7511]
[1727812056068,4.79637,2501.9,2501.5,4.79694]
[1727812056378,4.7964,2501.9,2501.5,4.79694]
[1727812056706,24.2106528,2502.0,2501.5,4.79694]
[1727812056911,4.79663,2501.8,2500.8,3.0]
[1727812057117,4.79701,2501.6,2501.0,4.79796]
[1727812057408,9.59404,2501.6,2501.1,4.79788]
[1727812057608,4.79701,2501.6,2501.2,4.79767]
[1727812057812,30.79281196,2501.7,2501.1,4.79788]
[1727812058012,4.79694,2501.6,2501.2,4.79768]
[1727812058174,30.79281196,2501.7,2501.3,4.7974]
[1727812058175,20.2434128,2501.7,2501.3,4.7974]
[1727812059012,0.06844156,2501.6,2501.3,4.7974]
[1727812059425,0.06844156,2501.6,2501.0,4.79792]
[1727812060007,4.86550156,2501.6,2501.2,4.79769]
[1727812060520,6.56250916,2501.4,2500.8,4.7983]
[1727812060734,0.81,2501.2,2500.8,4.7983]
[1727812061022,19.4144128,2501.1,2500.8,4.7983]
[1727812061177,19.48264208,2501.1,2500.8,4.7983]
[1727812061376,19.4144128,2501.0,2500.8,4.7983]
[1727812061812,19.48257695,2500.9,2500.4,0.0240768]
[1727812061970,19.48257695,2500.9,2500.6,4.79873]
[1727812062869,19.48257695,2500.9,2500.4,4.8231668]
[1727812062870,19.48257695,2500.9,2500.5,4.79893]
[1727812063290,19.48257695,2500.9,2500.4,0.0240768]
[1727812063491,19.48257695,2500.9,2500.7,4.79862]
[1727812064316,19.48257695,2500.9,2500.5,4.79887]
[1727812064470,19.48257695,2500.9,2500.6,4.79882]
[1727812064675,19.48257695,2500.9,2500.7,4.7986]
[1727812065008,19.48257695,2500.9,2500.7,4.7985]
[1727812065416,19.48257695,2500.9,2500.8,4.79846]
[1727812067611,19.48257695,2500.9,2500.6,4.79882]
[1727812067612,19.48257695,2500.9,2500.7,4.79864]
[1727812067815,0.06816415,2500.9,2500.7,4.79864]
[1727812067973,0.06816415,2500.9,2500.7,4.79852]
[1727812068178,19.4144128,2501.1,2500.8,4.79828]
[1727812068599,19.4144128,2501.1,2500.7,5.758364]
[1727812069077,19.4144128,2501.1,2500.7,9.59714]
[1727812069382,19.4144128,2501.1,2500.7,4.79857]
[1727812069601,19.4144128,2501.1,2500.7,4.79855]
[1727812069830,19.4144128,2501.1,2500.8,4.79837]
[1727812070022,19.4144128,2501.1,2500.7,9.59711]
[1727812070223,19.4144128,2501.1,2500.7,4.79855]
[1727812070811,19.4144128,2501.1,2500.7,9.5971]
[1727812071009,24.2123028,2501.1,2500.7,4.79855]
[1727812072560,19.4144128,2501.1,2500.7,9.5971]
[1727812072759,19.4144128,2501.1,2500.7,4.79855]
[1727812072913,19.4144128,2501.1,2500.8,4.79835]
[1727812073314,19.4144128,2501.1,2500.7,4.79855]
[1727812073315,24.2123228,2501.1,2500.7,9.5971]
[1727812073547,19.4144128,2501.1,2500.8,4.79846]
[1727812073849,19.4144128,2501.0,2500.8,4.79846]
[1727812074011,19.48213908,2501.0,2500.8,4.79846]
[1727812074211,19.48213908,2501.0,2500.9,4.79827]
[1727812074441,19.48213908,2501.0,2500.8,5.278226]
[1727812074713,19.48213908,2501.0,2500.9,4.79827]
[1727812075050,19.48213908,2501.0,2500.6,4.79866]
[1727812075412,19.48213908,2501.0,2500.4,0.7836768]
[1727812075608,19.48213908,2501.0,2500.7,4.79863]
[1727812075809,19.48213908,2501.0,2500.7,4.79857]
[1727812076239,19.48213908,2501.0,2500.7,4.79854]
[1727812076426,19.48213908,2501.0,2500.7,9.5971]
[1727812077243,19.48213908,2501.0,2500.7,4.79854]
[1727812077447,19.48213908,2501.0,2500.9,4.79827]
[1727812079559,0.06772628,2501.0,2500.9,4.79827]
[1727812079760,0.06772628,2501.0,2500.8,4.79843]
[1727812079929,4.79777,2501.2,2500.8,4.79843]
[1727812080275,0.06785789,2501.1,2500.7,4.79862]
[1727812080436,4.86581789,2501.1,2500.7,4.79862]
[1727812080763,4.86581789,2501.1,2500.4,4.8231768]
[1727812080764,4.67879485,2500.8,2500.4,4.8231768]
[1727812080936,9.47727485,2500.8,2500.4,4.8231768]
[1727812081149,24.28094333,2500.7,2500.4,0.0240768]
[1727812082364,19.48215333,2500.7,2500.6,4.79884]
[1727812082577,19.48215333,2500.7,2500.6,5.76103568]
[1727812082778,0.06774053,2500.7,2500.6,6.53503568]
[1727812082984,0.06774053,2500.7,2500.6,10.08503568]
[1727812083261,4.79632,2502.0,2501.6,4.7968]
[1727812083262,19.4144128,2502.0,2501.6,4.7968]
[1727812083484,22.65736108,2502.0,2501.6,4.79683]
[1727812083643,0.06332825,2501.9,2501.6,4.79682]
[1727812083846,19.47774105,2501.9,2501.6,9.59365]
[1727812084043,19.47774105,2501.9,2501.6,4.79682]
[1727812084250,19.47774105,2501.9,2501.8,4.79654]
[1727812084459,0.06332825,2501.9,2501.8,5.60104]
[1727812084661,0.06332825,2501.9,2501.8,6.15104]
[1727812084860,4.79541,2502.4,2501.8,5.60085]
[1727812085031,4.79541,2502.4,2501.8,6.2089032]
[1727812085360,0.06395406,2502.3,2501.8,6.2089032]
[1727812085674,0.06395406,2502.3,2501.6,0.479682]
[1727812085675,0.06395406,2502.3,2501.7,4.79673]
[1727812085881,0.7978,2502.1,2501.6,4.79688]
[1727812086245,0.06403307,2502.0,2501.7,4.79671]
[1727812086582,0.06403307,2502.0,2501.5,0.8118]
[1727812086763,0.06403307,2502.0,2501.7,4.79657]
[1727812086966,5.5832,2502.3,2501.7,4.79657]
[1727812087131,0.06412197,2501.9,2501.8,4.79643]
[1727812087330,0.7875,2502.3,2501.8,4.79643]
[1727812087531,0.06421958,2502.2,2501.8,4.79643]
[1727812087770,5.58313,2502.3,2501.8,4.79643]
[1727812087955,0.06418704,2502.1,2501.8,4.79643]
[1727812088281,0.7875,2502.3,2501.9,4.79634]
[1727812088641,3.7851,2502.9,2502.2,4.79567]
[1727812088798,20.1995128,2502.9,2502.4,4.79534]
[1727812088961,0.06438373,2502.8,2502.4,4.79534]
[1727812089162,0.06438373,2502.8,2502.3,4.79542]
[1727812089573,0.06438373,2502.8,2502.5,4.7951]
[1727812089767,0.06438373,2502.8,2502.0,5.54764]
[1727812089968,0.06438373,2502.8,2502.5,4.7951]
[1727812090154,0.06438373,2502.8,2502.6,4.79498]
[1727812090584,0.06438373,2502.8,2502.5,4.7951]
[1727812090900,4.79485,2502.7,2502.1,4.79584]
[1727812091083,0.06438373,2502.8,2501.7,0.7529]
[1727812091084,4.79562,2502.3,2501.7,0.7529]
[1727812091393,0.06445461,2502.2,2501.7,5.5495]
[1727812091593,0.8057,2502.1,2501.7,5.5495]
[1727812091808,5.60178,2502.1,2501.6,4.79688]
[1727812091988,5.60178,2502.1,2501.5,5.54988]
[1727812091989,0.06438409,2502.0,2501.5,5.54988]
[1727812092294,0.06438409,2502.0,2501.7,4.79657]
[1727812092500,0.06438409,2502.0,2501.7,9.59321]
[1727812092867,0.06438409,2502.0,2501.7,4.79657]
[1727812093063,0.06438409,2502.0,2501.5,6.104948]
[1727812093064,24.27498689,2502.0,2501.5,4.79701]
[1727812093397,0.7714,2501.9,2501.4,4.79729]
[1727812093607,8.07244869,2501.9,2501.4,4.79729]
[1727812093784,0.0642441,2501.8,2501.4,4.79729]
[1727812093990,0.0642441,2501.8,2501.3,4.79736]
[1727812094381,4.8609341,2501.8,2501.1,4.79778]
[1727812094584,19.4144128,2501.7,2501.3,4.79737]
[1727812094787,19.4144128,2501.7,2501.5,4.79709]
[1727812094989,19.4144128,2501.7,2501.1,0.557448]
[1727812094990,0.06397985,2501.6,2501.4,4.7973]
[1727812095407,0.06397985,2501.6,2501.5,4.79712]
[1727812095773,0.06397985,2501.6,2501.5,5.59262]
[1727812096227,19.4144128,2502.3,2502.2,4.79577]
[1727812096377,0.8074,2502.4,2502.2,4.79577]
[1727812096577,0.06409967,2502.3,2502.2,4.79577]
[1727812097505,0.06409967,2502.3,2502.0,9.5921]
[1727812097912,0.06409967,2502.3,2502.0,4.79598]
[1727812098079,0.06409967,2502.3,2502.1,4.79592]
[1727812098280,0.06409967,2502.3,2502.1,4.79583]
[1727812098488,0.06409967,2502.3,2502.2,4.79577]
[1727812098684,0.06409967,2502.3,2502.1,4.79583]
[1727812099114,24.9824628,2502.6,2502.1,4.79583]
[1727812099476,0.0642991,2502.5,2502.2,4.79565]
[1727812099697,0.0642991,2502.5,2502.3,4.79547]
[1727812099885,0.0642991,2502.5,2502.4,4.87530503]
[1727812100308,20.2443128,2502.9,2502.6,4.79493]
[1727812100515,0.8299,2502.9,2502.6,4.7949]
[1727812100810,0.8299,2502.9,2502.5,0.07990982]
[1727812100988,0.8299,2502.9,2502.0,0.8256]
[1727812100989,8.12823828,2502.9,2502.0,0.8256]
[1727812101186,4.7951,2502.6,2502.2,4.79568]
[1727812101408,4.7951,2502.6,2502.0,9.592]
[1727812101409,0.8286,2502.5,2502.0,9.592]
[1727812101611,0.8286,2502.5,2502.0,4.79597]
[1727812101779,24.2098128,2502.4,2501.8,4.79644]
[1727812101981,4.79562,2502.3,2501.8,4.79643]
[1727812102175,19.4144128,2502.3,2501.6,0.7506]
[1727812102395,19.4144128,2502.3,2502.2,4.79577]
[1727812102791,0.7532,2502.8,2502.5,4.7951]